[Event "*** Titled Tuesday Blitz"]
[Site "Chess.com"]
[Date "2020.05.26"]
[Round "2"]
[White "ChessyInstinct"]
[Black "attack2mateU"]
[Result "0-1"]
[WhiteElo "2413"]
[BlackElo "2673"]
[TimeControl "180+1"]
[EndTime "10:17:59 PDT"]
[Termination "attack2mateU won by checkmate"]

1. d4 {[%clk 0:03:00.9]} 1... Nf6 {[%clk 0:02:59.6]} 2. c4 {[%clk 0:03:00.3]}
2... g6 {[%clk 0:03:00]} 3. Nc3 {[%clk 0:02:59.6]} 3... d5 {[%clk 0:03:00.5]} 4.
Bg5 {[%clk 0:02:53.8]} 4... Ne4 {[%clk 0:02:59.4]} 5. Bf4 {[%clk 0:02:53]} 5...
Nxc3 {[%clk 0:02:57.4]} 6. bxc3 {[%clk 0:02:53]} 6... Bg7 {[%clk 0:02:53.5]} 7.
Nf3 {[%clk 0:02:51.3]} 7... c5 {[%clk 0:02:52.9]} 8. e3 {[%clk 0:02:51.5]} 8...
O-O {[%clk 0:02:41.9]} 9. cxd5 {[%clk 0:02:50.1]} 9... cxd4 {[%clk 0:02:37.2]}
10. cxd4 {[%clk 0:02:49.3]} 10... Qxd5 {[%clk 0:02:37.4]} 11. Be2 {[%clk
0:02:48.3]} 11... Qa5+ {[%clk 0:02:30.6]} 12. Qd2 {[%clk 0:02:24.7]} 12... Nc6
{[%clk 0:02:20.8]} 13. Qxa5 {[%clk 0:01:44.2]} 13... Nxa5 {[%clk 0:02:21.7]} 14.
Rc1 {[%clk 0:01:44.4]} 14... Be6 {[%clk 0:02:19.3]} 15. O-O {[%clk 0:01:31.8]}
15... Rfc8 {[%clk 0:02:16.3]} 16. e4 {[%clk 0:01:07]} 16... Bxa2 {[%clk
0:02:04.6]} 17. Ra1 {[%clk 0:01:00.2]} 17... Bc4 {[%clk 0:02:04.8]} 18. Bxc4
{[%clk 0:00:45.8]} 18... Nxc4 {[%clk 0:02:05.7]} 19. Rfb1 {[%clk 0:00:42.8]}
19... b6 {[%clk 0:02:00.3]} 20. Ra6 {[%clk 0:00:37]} 20... h6 {[%clk 0:01:28.4]}
21. h4 {[%clk 0:00:34.6]} 21... Rd8 {[%clk 0:01:08.6]} 22. d5 {[%clk 0:00:32.9]}
22... f5 {[%clk 0:01:05.7]} 23. exf5 {[%clk 0:00:27.5]} 23... gxf5 {[%clk
0:01:06.6]} 24. Rc1 {[%clk 0:00:27.4]} 24... b5 {[%clk 0:01:03.1]} 25. Nd4
{[%clk 0:00:23.6]} 25... Rxd5 {[%clk 0:00:59.9]} 26. Nxb5 {[%clk 0:00:23.6]}
26... Rxb5 {[%clk 0:00:48.9]} 27. Rxc4 {[%clk 0:00:23.2]} 27... Rb6 {[%clk
0:00:44.2]} 28. Rca4 {[%clk 0:00:07.4]} 28... e5 {[%clk 0:00:29.1]} 29. Rxb6
{[%clk 0:00:04.4]} 29... exf4 {[%clk 0:00:29.2]} 30. Rba6 {[%clk 0:00:03]} 30...
Rd8 {[%clk 0:00:27.3]} 31. Kh2 {[%clk 0:00:01.2]} 31... Rd2 {[%clk 0:00:27.1]}
32. Rxa7 {[%clk 0:00:01.4]} 32... Rxf2 {[%clk 0:00:27.7]} 33. Ra8+ {[%clk
0:00:01.7]} 33... Kh7 {[%clk 0:00:27.5]} 34. R8a7 {[%clk 0:00:02.6]} 34... f3
{[%clk 0:00:27.8]} 35. Rf4 {[%clk 0:00:02]} 35... Rxg2+ {[%clk 0:00:27.9]} 36.
Kh1 {[%clk 0:00:02.6]} 36... Rg3 {[%clk 0:00:28]} 37. Ra3 {[%clk 0:00:02.2]}
37... Rh3+ {[%clk 0:00:26.2]} 38. Kg1 {[%clk 0:00:02.1]} 38... f2+ {[%clk
0:00:26.7]} 39. Kxf2 {[%clk 0:00:02.2]} 39... Rxa3 {[%clk 0:00:27.5]} 40. Rf3
{[%clk 0:00:01.8]} 40... Rxf3+ {[%clk 0:00:27.5]} 41. Kxf3 {[%clk 0:00:02.7]}
41... Kg6 {[%clk 0:00:28]} 42. Kf4 {[%clk 0:00:03.6]} 42... Kf6 {[%clk
0:00:28.6]} 43. h5 {[%clk 0:00:03.7]} 43... Ke6 {[%clk 0:00:29.1]} 44. Kg3
{[%clk 0:00:04.2]} 44... Ke5 {[%clk 0:00:30]} 45. Kh3 {[%clk 0:00:05.1]} 45...
f4 {[%clk 0:00:30.7]} 46. Kg4 {[%clk 0:00:05.4]} 46... Ke4 {[%clk 0:00:31.4]}
47. Kh4 {[%clk 0:00:05.7]} 47... Kf3 {[%clk 0:00:30.1]} 48. Kh3 {[%clk
0:00:05.8]} 48... Bf6 {[%clk 0:00:30.5]} 49. Kh2 {[%clk 0:00:06.1]} 49... Kg4
{[%clk 0:00:30.9]} 50. Kg2 {[%clk 0:00:06.6]} 50... Kxh5 {[%clk 0:00:31.2]} 51.
Kf2 {[%clk 0:00:07.5]} 51... Kg4 {[%clk 0:00:31.6]} 52. Kg2 {[%clk 0:00:08]}
52... h5 {[%clk 0:00:32.5]} 53. Kf2 {[%clk 0:00:08.9]} 53... h4 {[%clk
0:00:33.4]} 54. Kg2 {[%clk 0:00:09.8]} 54... h3+ {[%clk 0:00:34.2]} 55. Kh2
{[%clk 0:00:10.7]} 55... f3 {[%clk 0:00:34.6]} 56. Kh1 {[%clk 0:00:11.6]} 56...
Kg3 {[%clk 0:00:34.5]} 57. Kg1 {[%clk 0:00:12.5]} 57... f2+ {[%clk 0:00:34.7]}
58. Kf1 {[%clk 0:00:13]} 58... h2 {[%clk 0:00:35]} 59. Ke2 {[%clk 0:00:13.9]}
59... h1=Q {[%clk 0:00:35.4]} 60. Ke3 {[%clk 0:00:14.8]} 60... Bg5+ {[%clk
0:00:35.1]} 61. Ke2 {[%clk 0:00:15.2]} 61... f1=Q# {[%clk 0:00:35.3]} 0-1

[Event "*** Titled Tuesday Blitz"]
[Site "Chess.com"]
[Date "2020.05.26"]
[Round "2"]
[White "BaMBoMaTTo"]
[Black "albano87"]
[Result "0-1"]
[WhiteElo "2675"]
[BlackElo "2356"]
[TimeControl "180+1"]
[EndTime "10:18:03 PDT"]
[Termination "albano87 won by checkmate"]

1. e4 {[%clk 0:03:00.3]} 1... c5 {[%clk 0:02:57.5]} 2. Nf3 {[%clk 0:03:00.6]}
2... Nc6 {[%clk 0:02:55.9]} 3. d4 {[%clk 0:03:01.1]} 3... cxd4 {[%clk
0:02:54.2]} 4. Nxd4 {[%clk 0:03:02]} 4... Nf6 {[%clk 0:02:52.8]} 5. Nc3 {[%clk
0:03:02.5]} 5... d6 {[%clk 0:02:52.3]} 6. Bg5 {[%clk 0:03:02.3]} 6... Bd7 {[%clk
0:02:51.7]} 7. Qd2 {[%clk 0:02:58.9]} 7... Rc8 {[%clk 0:02:49.6]} 8. O-O-O
{[%clk 0:02:58.8]} 8... Nxd4 {[%clk 0:02:49.4]} 9. Qxd4 {[%clk 0:02:59.2]} 9...
Qa5 {[%clk 0:02:47.3]} 10. Bd2 {[%clk 0:02:59.3]} 10... g6 {[%clk 0:02:42.2]}
11. a3 {[%clk 0:02:12.7]} 11... Bg7 {[%clk 0:02:37.5]} 12. Nb5 {[%clk
0:02:12.5]} 12... Qb6 {[%clk 0:02:34.2]} 13. Qxb6 {[%clk 0:02:03.1]} 13... axb6
{[%clk 0:02:35.1]} 14. f3 {[%clk 0:02:04]} 14... Be6 {[%clk 0:02:29.3]} 15. Be3
{[%clk 0:01:12.3]} 15... Nd7 {[%clk 0:02:28.5]} 16. Nd4 {[%clk 0:01:05.2]} 16...
Bc4 {[%clk 0:02:23.4]} 17. Bxc4 {[%clk 0:00:56]} 17... Rxc4 {[%clk 0:02:22.4]}
18. Nb5 {[%clk 0:00:32.5]} 18... O-O {[%clk 0:02:16.5]} 19. b3 {[%clk
0:00:32.3]} 19... Rcc8 {[%clk 0:02:15.3]} 20. Bd4 {[%clk 0:00:30.7]} 20... Bxd4
{[%clk 0:02:09]} 21. Rxd4 {[%clk 0:00:31.6]} 21... f5 {[%clk 0:02:04.3]} 22. Re1
{[%clk 0:00:26.7]} 22... Rc5 {[%clk 0:02:00.4]} 23. a4 {[%clk 0:00:26.4]} 23...
Rfc8 {[%clk 0:02:00]} 24. c4 {[%clk 0:00:19.2]} 24... Re5 {[%clk 0:01:56.6]} 25.
f4 {[%clk 0:00:18.5]} 25... Rxe4 {[%clk 0:01:51.6]} 26. Rdxe4 {[%clk 0:00:18.3]}
26... fxe4 {[%clk 0:01:48.5]} 27. Rxe4 {[%clk 0:00:19.2]} 27... Kf7 {[%clk
0:01:39.9]} 28. Kc2 {[%clk 0:00:19.6]} 28... Nf6 {[%clk 0:01:35.9]} 29. Rd4
{[%clk 0:00:18.5]} 29... Rc5 {[%clk 0:01:29.4]} 30. g3 {[%clk 0:00:18.3]} 30...
g5 {[%clk 0:01:23.4]} 31. Nc3 {[%clk 0:00:16.8]} 31... gxf4 {[%clk 0:01:15]} 32.
Rxf4 {[%clk 0:00:17.7]} 32... Kg6 {[%clk 0:01:15.5]} 33. Ne4 {[%clk 0:00:16.9]}
33... Rh5 {[%clk 0:01:07.8]} 34. h4 {[%clk 0:00:12.6]} 34... Rf5 {[%clk
0:01:01.2]} 35. Rxf5 {[%clk 0:00:11]} 35... Kxf5 {[%clk 0:00:57.8]} 36. Nf2
{[%clk 0:00:11.5]} 36... Ne4 {[%clk 0:00:53.7]} 37. Nxe4 {[%clk 0:00:08.7]}
37... Kxe4 {[%clk 0:00:53.4]} 38. g4 {[%clk 0:00:09.4]} 38... Kf4 {[%clk
0:00:48.8]} 39. g5 {[%clk 0:00:09.7]} 39... Kg4 {[%clk 0:00:45.7]} 40. Kd3
{[%clk 0:00:09.9]} 40... Kxh4 {[%clk 0:00:43.8]} 41. Ke4 {[%clk 0:00:10.8]}
41... Kxg5 {[%clk 0:00:43.9]} 42. Kd5 {[%clk 0:00:08.8]} 42... h5 {[%clk
0:00:42.9]} 43. Ke6 {[%clk 0:00:09.7]} 43... h4 {[%clk 0:00:43.4]} 44. Kxe7
{[%clk 0:00:10.6]} 44... h3 {[%clk 0:00:44]} 45. Kxd6 {[%clk 0:00:11.5]} 45...
h2 {[%clk 0:00:44.5]} 46. Kc7 {[%clk 0:00:12.4]} 46... h1=Q {[%clk 0:00:44.8]}
47. Kxb6 {[%clk 0:00:13.3]} 47... Qc6+ {[%clk 0:00:43.8]} 48. Ka5 {[%clk
0:00:13.5]} 48... Qc5# {[%clk 0:00:42.8]} 0-1

[Event "*** Titled Tuesday Blitz"]
[Site "Chess.com"]
[Date "2020.05.26"]
[Round "2"]
[White "Turquoise_2701"]
[Black "Orest_Vovk"]
[Result "0-1"]
[WhiteElo "2149"]
[BlackElo "2410"]
[TimeControl "180+1"]
[EndTime "10:18:04 PDT"]
[Termination "Orest_Vovk won on time"]

1. Nf3 {[%clk 0:03:00.9]} 1... Nf6 {[%clk 0:02:58.8]} 2. c4 {[%clk 0:03:00.7]}
2... e6 {[%clk 0:02:58.7]} 3. g3 {[%clk 0:03:01]} 3... Nc6 {[%clk 0:02:58.7]} 4.
Bg2 {[%clk 0:03:01.3]} 4... d5 {[%clk 0:02:56.8]} 5. O-O {[%clk 0:03:01.8]} 5...
g6 {[%clk 0:02:50.5]} 6. b3 {[%clk 0:02:56]} 6... Bg7 {[%clk 0:02:49.4]} 7. Bb2
{[%clk 0:02:56.2]} 7... O-O {[%clk 0:02:49.4]} 8. d3 {[%clk 0:02:56.5]} 8... Re8
{[%clk 0:02:35.1]} 9. Nbd2 {[%clk 0:02:56.1]} 9... e5 {[%clk 0:02:30.4]} 10.
cxd5 {[%clk 0:02:52.2]} 10... Nxd5 {[%clk 0:02:29.8]} 11. Ne1 {[%clk 0:02:36.6]}
11... Be6 {[%clk 0:02:21.5]} 12. Rc1 {[%clk 0:02:35.1]} 12... Qd7 {[%clk
0:02:21.2]} 13. Ne4 {[%clk 0:02:31.2]} 13... b6 {[%clk 0:01:58.6]} 14. Ng5
{[%clk 0:02:20.3]} 14... Nd4 {[%clk 0:01:48.2]} 15. Nxe6 {[%clk 0:02:01.5]}
15... Nxe6 {[%clk 0:01:47.3]} 16. Nc2 {[%clk 0:01:52.6]} 16... c5 {[%clk
0:01:44.1]} 17. Na3 {[%clk 0:01:50.2]} 17... Rad8 {[%clk 0:01:42.3]} 18. Nc4
{[%clk 0:01:49.5]} 18... Nd4 {[%clk 0:01:39.2]} 19. e3 {[%clk 0:01:46.5]} 19...
Nc6 {[%clk 0:01:36.7]} 20. Qf3 {[%clk 0:01:25.8]} 20... Ncb4 {[%clk 0:01:32]}
21. Rfd1 {[%clk 0:01:07.8]} 21... Nxa2 {[%clk 0:01:28.6]} 22. Ra1 {[%clk
0:01:07]} 22... Nab4 {[%clk 0:01:28.4]} 23. Rd2 {[%clk 0:00:30.8]} 23... Nxd3
{[%clk 0:01:03.1]} 24. Qd1 {[%clk 0:00:16.7]} 24... N5b4 {[%clk 0:00:56.1]} 25.
Bc3 {[%clk 0:00:09.5]} 25... e4 {[%clk 0:00:49.9]} 26. Bxg7 {[%clk 0:00:08.7]}
26... Kxg7 {[%clk 0:00:50.2]} 27. f3 {[%clk 0:00:05.9]} 27... f5 {[%clk
0:00:41]} 28. fxe4 {[%clk 0:00:04.3]} 28... fxe4 {[%clk 0:00:41.1]} 29. Nb2
{[%clk 0:00:04]} 29... Qf7 {[%clk 0:00:33.1]} 30. Nxd3 {[%clk 0:00:03.3]} 30...
Rxd3 {[%clk 0:00:31.7]} 31. Rxd3 {[%clk 0:00:02.8]} 31... exd3 {[%clk
0:00:30.8]} 32. Qd2 {[%clk 0:00:02.3]} 32... Re7 {[%clk 0:00:26.4]} 33. e4
{[%clk 0:00:02.7]} 33... Qf6 {[%clk 0:00:25.8]} 34. Rf1 {[%clk 0:00:03]} 34...
Qd4+ {[%clk 0:00:25.6]} 35. Kh1 {[%clk 0:00:03.2]} 35... Nc2 {[%clk 0:00:24]}
36. Qg5 {[%clk 0:00:03.4]} 36... Qe5 {[%clk 0:00:23.1]} 37. Qd2 {[%clk
0:00:02.4]} 37... Rd7 {[%clk 0:00:19.1]} 38. h4 {[%clk 0:00:01.5]} 38... Qxg3
{[%clk 0:00:16.3]} 39. h5 {[%clk 0:00:02.2]} 39... Qh4+ {[%clk 0:00:16.1]} 40.
Kg1 {[%clk 0:00:02.6]} 40... Qxh5 {[%clk 0:00:16.2]} 41. Qc3+ {[%clk 0:00:02.3]}
41... Rd4 {[%clk 0:00:15.3]} 42. b4 {[%clk 0:00:01.8]} 42... Ne3 {[%clk
0:00:12.6]} 0-1

[Event "*** Titled Tuesday Blitz"]
[Site "Chess.com"]
[Date "2020.05.26"]
[Round "2"]
[White "Bigfish1995"]
[Black "Lubov_Gordyk"]
[Result "1-0"]
[WhiteElo "3029"]
[BlackElo "2596"]
[TimeControl "180+1"]
[EndTime "10:18:05 PDT"]
[Termination "Bigfish1995 won by checkmate"]

1. d4 {[%clk 0:02:57.7]} 1... c5 {[%clk 0:02:59.3]} 2. d5 {[%clk 0:02:55.8]}
2... f5 {[%clk 0:02:59.5]} 3. g4 {[%clk 0:02:54.8]} 3... fxg4 {[%clk 0:02:59.3]}
4. e4 {[%clk 0:02:53.8]} 4... d6 {[%clk 0:02:59]} 5. h3 {[%clk 0:02:53.6]} 5...
Nf6 {[%clk 0:02:57.9]} 6. Nc3 {[%clk 0:02:53.1]} 6... g6 {[%clk 0:02:56.6]} 7.
hxg4 {[%clk 0:02:37.4]} 7... Bxg4 {[%clk 0:02:55.7]} 8. Bb5+ {[%clk 0:02:30.8]}
8... Bd7 {[%clk 0:02:53.6]} 9. Bxd7+ {[%clk 0:02:31]} 9... Qxd7 {[%clk
0:02:53.3]} 10. Nf3 {[%clk 0:02:31.9]} 10... Na6 {[%clk 0:02:50.9]} 11. e5
{[%clk 0:02:28.8]} 11... dxe5 {[%clk 0:02:49.3]} 12. Nxe5 {[%clk 0:02:29.1]}
12... Qf5 {[%clk 0:02:49.7]} 13. Nc4 {[%clk 0:02:07.6]} 13... O-O-O {[%clk
0:02:44.4]} 14. Ne3 {[%clk 0:02:05.3]} 14... Qe5 {[%clk 0:02:36.1]} 15. a3
{[%clk 0:02:05.3]} 15... e6 {[%clk 0:02:32.7]} 16. d6 {[%clk 0:02:00.8]} 16...
Nd5 {[%clk 0:02:20]} 17. Nxd5 {[%clk 0:01:22.4]} 17... Rxd6 {[%clk 0:01:48.4]}
18. Qg4 {[%clk 0:01:15.8]} 18... Rxd5 {[%clk 0:01:45.6]} 19. Bd2 {[%clk
0:01:14.3]} 19... Rxd2 {[%clk 0:01:17.1]} 20. Kxd2 {[%clk 0:01:13.2]} 20... Bg7
{[%clk 0:01:16.8]} 21. c3 {[%clk 0:01:12.8]} 21... Nc7 {[%clk 0:01:13.3]} 22.
Kc2 {[%clk 0:01:11.3]} 22... Rf8 {[%clk 0:01:12]} 23. Raf1 {[%clk 0:01:06.9]}
23... Rf4 {[%clk 0:00:58.9]} 24. Qd1 {[%clk 0:01:00.6]} 24... Nd5 {[%clk
0:00:54.4]} 25. Nxd5 {[%clk 0:00:58.6]} 25... exd5 {[%clk 0:00:53.4]} 26. Rxh7
{[%clk 0:00:57.3]} 26... d4 {[%clk 0:00:45.4]} 27. Qd3 {[%clk 0:00:36.5]} 27...
dxc3 {[%clk 0:00:40]} 28. bxc3 {[%clk 0:00:31.1]} 28... c4 {[%clk 0:00:37.8]}
29. Qd2 {[%clk 0:00:31.5]} 29... g5 {[%clk 0:00:30.1]} 30. Kb2 {[%clk
0:00:29.8]} 30... Rf3 {[%clk 0:00:28]} 31. Rc1 {[%clk 0:00:28.6]} 31... Rd3
{[%clk 0:00:20.4]} 32. Qe1 {[%clk 0:00:27.5]} 32... Qf6 {[%clk 0:00:13.8]} 33.
Qe8+ {[%clk 0:00:21.9]} 33... Kc7 {[%clk 0:00:14]} 34. Qg8 {[%clk 0:00:17.7]}
34... Rd2+ {[%clk 0:00:13.6]} 35. Ka1 {[%clk 0:00:17]} 35... Rd7 {[%clk
0:00:08]} 36. Qxc4+ {[%clk 0:00:16.4]} 36... Kd8 {[%clk 0:00:06.2]} 37. Rc2
{[%clk 0:00:13.3]} 37... b5 {[%clk 0:00:05.7]} 38. Qxb5 {[%clk 0:00:11.2]} 38...
Qg6 {[%clk 0:00:05.2]} 39. Qb8+ {[%clk 0:00:09]} 39... Ke7 {[%clk 0:00:05.4]}
40. Re2+ {[%clk 0:00:09.5]} 40... Kf7 {[%clk 0:00:04.2]} 41. Qe8+ {[%clk
0:00:09.8]} 41... Kf6 {[%clk 0:00:04.8]} 42. Qe6# {[%clk 0:00:10.4]} 1-0

[Event "*** Titled Tuesday Blitz"]
[Site "Chess.com"]
[Date "2020.05.26"]
[Round "2"]
[White "Siemba"]
[Black "cioxminator"]
[Result "1-0"]
[WhiteElo "2274"]
[BlackElo "2448"]
[TimeControl "180+1"]
[EndTime "10:18:05 PDT"]
[Termination "Siemba won by resignation"]

1. d4 {[%clk 0:02:58.8]} 1... Nf6 {[%clk 0:02:58.2]} 2. c4 {[%clk 0:02:57.1]}
2... c5 {[%clk 0:02:58.6]} 3. d5 {[%clk 0:02:56.6]} 3... b5 {[%clk 0:02:59.2]}
4. cxb5 {[%clk 0:02:57.1]} 4... a6 {[%clk 0:02:58.8]} 5. bxa6 {[%clk 0:02:58]}
5... Bxa6 {[%clk 0:02:57.9]} 6. Nc3 {[%clk 0:02:57.8]} 6... d6 {[%clk 0:02:57]}
7. e4 {[%clk 0:02:55.9]} 7... Bxf1 {[%clk 0:02:55.4]} 8. Kxf1 {[%clk 0:02:56.8]}
8... g6 {[%clk 0:02:55.5]} 9. g3 {[%clk 0:02:57.1]} 9... Bg7 {[%clk 0:02:55.2]}
10. Kg2 {[%clk 0:02:57.5]} 10... O-O {[%clk 0:02:55.4]} 11. Nf3 {[%clk
0:02:57.4]} 11... Nbd7 {[%clk 0:02:55.1]} 12. Qc2 {[%clk 0:02:52.1]} 12... Ra6
{[%clk 0:02:54.6]} 13. a4 {[%clk 0:02:46.2]} 13... Qa8 {[%clk 0:02:54.1]} 14.
Bg5 {[%clk 0:02:35.2]} 14... Rc8 {[%clk 0:02:38.2]} 15. b3 {[%clk 0:02:21.9]}
15... e6 {[%clk 0:02:33.5]} 16. Rhd1 {[%clk 0:01:38]} 16... exd5 {[%clk
0:02:29.9]} 17. exd5 {[%clk 0:01:35.9]} 17... Nb6 {[%clk 0:02:15.7]} 18. Rac1
{[%clk 0:00:58.1]} 18... Nbxd5 {[%clk 0:01:53.7]} 19. Nxd5 {[%clk 0:00:59]}
19... Nxd5 {[%clk 0:01:53.2]} 20. Qe4 {[%clk 0:00:45.6]} 20... Nc3 {[%clk
0:01:09.5]} 21. Qxa8 {[%clk 0:00:45.2]} 21... Rcxa8 {[%clk 0:01:10]} 22. Rd3
{[%clk 0:00:43.1]} 22... Ne4 {[%clk 0:01:03.9]} 23. Bf4 {[%clk 0:00:43.5]} 23...
f5 {[%clk 0:00:46.9]} 24. Nd2 {[%clk 0:00:28.9]} 24... Rb8 {[%clk 0:00:27]} 25.
Nxe4 {[%clk 0:00:25.2]} 25... fxe4 {[%clk 0:00:27]} 26. Rxd6 {[%clk 0:00:25.5]}
26... Rxd6 {[%clk 0:00:25.7]} 27. Bxd6 {[%clk 0:00:26.4]} 27... Rxb3 {[%clk
0:00:25.7]} 28. Bxc5 {[%clk 0:00:20.8]} 28... Rb2 {[%clk 0:00:24.6]} 29. Rc4
{[%clk 0:00:15.6]} 29... Ra2 {[%clk 0:00:18.3]} 30. Rxe4 {[%clk 0:00:14.8]}
30... Kf7 {[%clk 0:00:18.8]} 31. Bb6 {[%clk 0:00:11.4]} 31... Bc3 {[%clk
0:00:16.7]} 32. Rc4 {[%clk 0:00:10.9]} 32... Be1 {[%clk 0:00:15.8]} 33. h4
{[%clk 0:00:10.4]} 33... Ke6 {[%clk 0:00:13.9]} 34. Re4+ {[%clk 0:00:10.4]}
34... Kd5 {[%clk 0:00:13.6]} 35. Rxe1 {[%clk 0:00:11.3]} 35... Rxa4 {[%clk
0:00:13.5]} 36. Be3 {[%clk 0:00:11.8]} 36... Rc4 {[%clk 0:00:10.9]} 37. Rc1
{[%clk 0:00:12.1]} 37... Ra4 {[%clk 0:00:09.9]} 38. Kf3 {[%clk 0:00:13]} 38...
Ra3 {[%clk 0:00:09.4]} 39. Rc5+ {[%clk 0:00:12.7]} 39... Kd6 {[%clk 0:00:08.7]}
40. Rb5 {[%clk 0:00:13.3]} 40... Ke6 {[%clk 0:00:07]} 41. h5 {[%clk 0:00:13.7]}
41... gxh5 {[%clk 0:00:06.5]} 42. Rxh5 {[%clk 0:00:14.6]} 42... Ra1 {[%clk
0:00:03.8]} 43. Rxh7 {[%clk 0:00:14.8]} 1-0

[Event "*** Titled Tuesday Blitz"]
[Site "Chess.com"]
[Date "2020.05.26"]
[Round "2"]
[White "Caterpiller35"]
[Black "angryhorse9"]
[Result "0-1"]
[WhiteElo "2259"]
[BlackElo "2472"]
[TimeControl "180+1"]
[EndTime "10:18:08 PDT"]
[Termination "angryhorse9 won by resignation"]

1. d4 {[%clk 0:03:00]} 1... Nf6 {[%clk 0:02:59.8]} 2. Bg5 {[%clk 0:02:58.7]}
2... c5 {[%clk 0:02:59.2]} 3. Bxf6 {[%clk 0:02:58.3]} 3... gxf6 {[%clk
0:02:59.5]} 4. d5 {[%clk 0:02:58.5]} 4... d6 {[%clk 0:02:58.7]} 5. c4 {[%clk
0:02:58]} 5... f5 {[%clk 0:02:58.5]} 6. Nc3 {[%clk 0:02:57.8]} 6... Bg7 {[%clk
0:02:58.8]} 7. Qc2 {[%clk 0:02:57.9]} 7... Na6 {[%clk 0:02:56.1]} 8. e3 {[%clk
0:02:57.3]} 8... O-O {[%clk 0:02:51.8]} 9. a3 {[%clk 0:02:55.9]} 9... Nc7 {[%clk
0:02:51.9]} 10. Bd3 {[%clk 0:02:55.4]} 10... e6 {[%clk 0:02:52.5]} 11. g4 {[%clk
0:02:44.8]} 11... fxg4 {[%clk 0:02:41.6]} 12. Bxh7+ {[%clk 0:02:43.5]} 12... Kh8
{[%clk 0:02:42.2]} 13. Nge2 {[%clk 0:02:42.8]} 13... exd5 {[%clk 0:02:40.8]} 14.
O-O-O {[%clk 0:02:38.4]} 14... f5 {[%clk 0:02:34.8]} 15. h3 {[%clk 0:02:28.1]}
15... g3 {[%clk 0:02:34.6]} 16. Nxg3 {[%clk 0:02:24.2]} 16... Kxh7 {[%clk
0:02:34.3]} 17. Nxd5 {[%clk 0:02:24.3]} 17... Nxd5 {[%clk 0:02:24.1]} 18. Rxd5
{[%clk 0:02:25.2]} 18... Be6 {[%clk 0:02:24.4]} 19. Nxf5 {[%clk 0:02:24]} 19...
Bxf5 {[%clk 0:02:16.5]} 20. Rxf5 {[%clk 0:02:23.7]} 20... Rxf5 {[%clk
0:02:14.3]} 21. Qxf5+ {[%clk 0:02:24.6]} 21... Kh8 {[%clk 0:02:13.3]} 22. Qh5+
{[%clk 0:02:16.3]} 22... Kg8 {[%clk 0:02:12.6]} 23. Qd5+ {[%clk 0:02:16.1]}
23... Kf8 {[%clk 0:02:10.3]} 24. Rg1 {[%clk 0:02:10.3]} 24... Qe7 {[%clk
0:02:10.1]} 25. Rg6 {[%clk 0:02:05.4]} 25... Rd8 {[%clk 0:02:02.7]} 26. Re6
{[%clk 0:01:40.1]} 26... Qf7 {[%clk 0:01:54.6]} 27. Rxd6 {[%clk 0:01:20.6]}
27... Rxd6 {[%clk 0:01:51.9]} 28. Qxd6+ {[%clk 0:01:20]} 28... Kg8 {[%clk
0:01:52.4]} 29. Qxc5 {[%clk 0:01:09.7]} 29... Qxf2 {[%clk 0:01:52.3]} 30. Qd5+
{[%clk 0:01:06]} 30... Kh8 {[%clk 0:01:45.4]} 31. Qh5+ {[%clk 0:01:00]} 31...
Kg8 {[%clk 0:01:45.8]} 32. Qd5+ {[%clk 0:00:56]} 32... Kf8 {[%clk 0:01:45.8]}
33. Qxb7 {[%clk 0:00:47.6]} 33... Qxe3+ {[%clk 0:01:43.9]} 34. Kc2 {[%clk
0:00:37.4]} 34... Qe2+ {[%clk 0:01:43.3]} 35. Kb1 {[%clk 0:00:36.6]} 35... Qd3+
{[%clk 0:01:43.1]} 36. Ka2 {[%clk 0:00:31.3]} 36... Qxc4+ {[%clk 0:01:42.9]} 37.
Qb3 {[%clk 0:00:31.2]} 37... Qd4 {[%clk 0:01:18.1]} 38. Qb4+ {[%clk 0:00:28.8]}
38... Qxb4 {[%clk 0:01:16.9]} 39. axb4 {[%clk 0:00:29.2]} 39... Ke7 {[%clk
0:01:17.8]} 40. Kb3 {[%clk 0:00:27.7]} 40... Kd6 {[%clk 0:01:18]} 41. h4 {[%clk
0:00:26.8]} 41... Kc6 {[%clk 0:01:17.1]} 42. h5 {[%clk 0:00:23.6]} 42... Kb5
{[%clk 0:01:17.5]} 43. Ka3 {[%clk 0:00:22.9]} 43... Bf8 {[%clk 0:01:16.9]} 44.
Kb3 {[%clk 0:00:14]} 44... Bh6 {[%clk 0:01:13.4]} 45. Ka3 {[%clk 0:00:10.8]}
45... Bg7 {[%clk 0:01:13.8]} 46. Kb3 {[%clk 0:00:10.6]} 46... Bf8 {[%clk
0:01:14.3]} 47. Kc3 {[%clk 0:00:06.7]} 47... Bxb4+ {[%clk 0:01:14]} 48. Kd4
{[%clk 0:00:07]} 48... Bf8 {[%clk 0:01:13.9]} 49. Kd5 {[%clk 0:00:07.2]} 49...
Bg7 {[%clk 0:01:13.3]} 50. b3 {[%clk 0:00:05.4]} 50... a5 {[%clk 0:01:12]} 0-1